[Event "16th Deltalift Open 2019"]
[Site "Halmstad"]
[Date "2019.06.01"]
[Round "7.15"]
[White "Hansen, Lars"]
[Black "Falkevall, Axel"]
[Result "1-0"]
[ECO "A40"]
[WhiteElo "2196"]
[BlackElo "1960"]
[Annotator "ChessBase"]
[PlyCount "91"]
[EventDate "2019.05.30"]
[EventType "swiss"]
[EventCountry "SWE"]
[SourceTitle "playchess.com"]
[Source "ChessBase"]
[SourceQuality "1"]
[TimeControl "40/5400+30:1800+30"]

1. d4 {[%emt 0:07:48]} e6 {[%emt 0:00:00]} 2. Nf3 {[%emt 0:01:48]} d5 {[%emt 0:01:22]} 3. c3 {[%emt 0:05:30]} Nf6 {[%emt 0:00:53]} 4. Bg5 {[%emt 0:00:13]} Be7 {[%emt 0:00:37]} 5. Nbd2 {[%emt 0:00:21]} Nbd7 {[%emt 0:01:13]} 6. e3 {[%emt 0:00:07]} O-O {[%emt 0:01:42]} 7. Bd3 {[%emt 0:00:04]} b6 {[%emt 0:02:30]} 8. O-O {[%emt 0:05:18]} Bb7 {[%emt 0:00:21]} 9. Ne5 {[%emt 0:02:09]} Nxe5 {[%emt 0:04:38]} 10. dxe5 {[%emt 0:00:05]} Nd7 {[%emt 0:00:14]} 11. Bxe7 {[%emt 0:01:31]} Qxe7 {[%emt 0:00:02]} 12. f4 {[%emt 0:00:07]} f5 {[%emt 0:16:26]} 13. exf6 {[%emt 0:00:31]} Nxf6 {[%emt 0:01:52]} 14. Nf3 {[%emt 0:00:29]} c5 {[%emt 0:05:21]} 15. Qe2 {[%emt 0:04:50]} Rad8 {[%emt 0:08:59]} 16. Rae1 {[%emt 0:00:56]} Qd6 {[%emt 0:02:16]} 17. Ne5 {[%emt 0:18:26]} Rfe8 {[%emt 0:10:02]} 18. Rf3 {[%emt 0:11:24]} Re7 {[%emt 0:08:07]} 19. Qf2 {[%emt 0:03:35]} Ne4 {[%emt 0:12:41]} 20. Qh4 {[%emt 0:01:14]} Rf8 21. Bxe4 {[%emt 0:15:53]} dxe4 {[%emt 0:03:41]} 22. Rh3 {[%emt 0:02:26]} g6 {[%emt 0:00:34]} 23. Ng4 {[%emt 0:01:32]} Qc7 {[%emt 0:01:42]} 24. Qg5 {[%emt 0:05:33]} Rg7 {[%emt 0:01:59]} 25. Rd1 {[%emt 0:01:49]} Kh8 {[%emt 0:04:02]} 26. Ne5 {[%emt 0:00:34]} Kg8 {[%emt 0:01:37]} 27. c4 {[%emt 0:02:29]} Ba8 {[%emt 0:02:00]} 28. g4 {[%emt 0:01:00]} Bb7 {[%emt 0:01:05]} 29. Rg3 {[%emt 0:00:34]} Qe7 {[%emt 0:00:56]} 30. h4 {[%emt 0:02:02]} Qxg5 {[%emt 0:02:59]} 31. hxg5 {[%emt 0:00:03]} Bc8 {[%emt 0:00:52]} 32. Rg2 {[%emt 0:00:06]} Rb7 {[%emt 0:01:00]} 33. Rgd2 {[%emt 0:00:16]} Rc7 {[%emt 0:00:45]} 34. Rd6 {[%emt 0:00:36]} Re8 {[%emt 0:00:45]} 35. Kf2 {[%emt 0:01:09]} Rf8 {[%emt 0:00:27]} 36. Ke2 {[%emt 0:00:49]} Re8 {[%emt 0:00:23]} 37. Kd2 {[%emt 0:00:38]} Rf8 {[%emt 0:00:34]} 38. Kc3 {[%emt 0:00:07]} Re8 {[%emt 0:00:20]} 39. a3 {[%emt 0:01:41]} Rf8 {[%emt 0:01:14]} 40. b4 {[%emt 0:00:31]} Re8 {[%emt 0:00:40]} 41. Kb3 {[%emt 0:30:15]} Rf8 {[%emt 0:32:13]} 42. b5 {[%emt 0:00:00]} Re8 {[%emt 0:00:00]} 43. a4 {[%emt 0:00:00]} Bb7 {[%emt 0:00:00]} 44. Nd7 {[%emt 0:00:00]} Kg7 {[%emt 0:00:00]} 45. Nf6 {[%emt 0:00:00]} Ree7 {[%emt 0:00:00]} 46. Rh1 {[%emt 0:00:00]} 1-0

[Event "16th Deltalift Open 2019"]
[Site "Halmstad"]
[Date "2019.06.01"]
[Round "7.16"]
[White "Ziegler, Nathalie"]
[Black "Brzezinski, Adam"]
[Result "0-1"]
[ECO "A36"]
[WhiteElo "1789"]
[BlackElo "2193"]
[Annotator "ChessBase"]
[PlyCount "58"]
[EventDate "2019.05.30"]
[EventType "swiss"]
[EventCountry "SWE"]
[SourceTitle "playchess.com"]
[Source "ChessBase"]
[SourceQuality "1"]
[TimeControl "40/5400+30:1800+30"]

1. c4 {[%emt 0:00:00]} c5 {[%emt 0:00:00]} 2. Nc3 {[%emt 0:00:20]} Nc6 {[%emt 0:00:11]} 3. g3 {[%emt 0:02:02]} g6 {[%emt 0:00:32]} 4. Bg2 {[%emt 0:00:05]} Bg7 {[%emt 0:00:09]} 5. a3 {[%emt 0:00:25]} d6 {[%emt 0:02:15]} 6. Rb1 {[%emt 0:00:20]} Be6 {[%emt 0:05:20]} 7. d3 {[%emt 0:18:43]} Qd7 {[%emt 0:03:32]} 8. e3 {[%emt 0:02:23]} h5 {[%emt 0:13:47]} 9. h4 {[%emt 0:01:31]} Rc8 {[%emt 0:01:46]} 10. Nge2 {[%emt 0:00:31]} Bg4 {[%emt 0:05:11]} 11. f3 {[%emt 0:04:04]} Bf5 {[%emt 0:01:58]} 12. Nd5 {[%emt 0:06:10]} e5 {[%emt 0:06:21]} 13. b4 {[%emt 0:02:46]} Nce7 {[%emt 0:05:51]} 14. e4 {[%emt 0:01:57]} Be6 {[%emt 0:00:08]} 15. Bb2 {[%emt 0:03:18]} f5 {[%emt 0:07:37]} 16. O-O {[%emt 0:10:30]} fxe4 {[%emt 0:03:44]} 17. fxe4 {[%emt 0:08:07]} Nxd5 {[%emt 0:00:49]} 18. cxd5 {[%emt 0:02:41]} Bg4 {[%emt 0:08:47]} 19. Qd2 {[%emt 0:00:22]} Bh6 {[%emt 0:06:09]} 20. Qe1 {[%emt 0:00:40]} cxb4 {[%emt 0:00:39]} 21. axb4 {[%emt 0:06:06]} Rc2 {[%emt 0:01:16]} 22. Nf4 {[%emt 0:04:18]} exf4 {[%emt 0:05:56]} 23. Bxh8 {[%emt 0:00:31]} Re2 {[%emt 0:00:05]} 24. Qc3 {[%emt 0:00:49]} f3 {[%emt 0:00:14]} 25. Bd4 {[%emt 0:09:25]} Rxg2+ {[%emt 0:02:30]} 26. Kh1 {[%emt 0:00:01]} Rxg3 {[%emt 0:02:21]} 27. Rf2 {[%emt 0:06:55]} Qe7 {[%emt 0:04:24]} 28. Rh2 {[%emt 0:00:26]} f2 {[%emt 0:01:02]} 29. Bxf2 {[%emt 0:00:09]} Bf3+ {[%emt 0:00:09]} 0-1

[Event "16th Deltalift Open 2019"]
[Site "Halmstad"]
[Date "2019.06.01"]
[Round "7.17"]
[White "Muntean, Victor"]
[Black "Lindhe, Magnus"]
[Result "0-1"]
[ECO "C00"]
[WhiteElo "1929"]
[BlackElo "2173"]
[Annotator "ChessBase"]
[PlyCount "74"]
[EventDate "2019.05.30"]
[EventType "swiss"]
[EventCountry "SWE"]
[SourceTitle "playchess.com"]
[Source "ChessBase"]
[SourceQuality "1"]
[TimeControl "40/5400+30:1800+30"]

1. e4 {[%emt 0:00:00]} e6 {[%emt 0:01:35]} 2. d4 {[%emt 0:00:00]} b6 {[%emt 0:00:33]} 3. c4 {[%emt 0:04:01]} Bb7 {[%emt 0:02:34]} 4. Nc3 {[%emt 0:00:28]} Bb4 {[%emt 0:00:13]} 5. Bd3 {[%emt 0:00:23]} f5 {[%emt 0:01:29]} 6. Qe2 {[%emt 0:04:45]} Nf6 {[%emt 0:02:45]} 7. f3 {[%emt 0:01:08]} Nc6 {[%emt 0:00:40]} 8. d5 {[%emt 0:01:00]} Ne5 {[%emt 0:03:29]} 9. Bf4 {[%emt 0:05:32]} Bxc3+ {[%emt 0:02:19]} 10. bxc3 {[%emt 0:00:07]} Nxd3+ {[%emt 0:00:10]} 11. Qxd3 {[%emt 0:00:07]} fxe4 {[%emt 0:09:56]} 12. fxe4 {[%emt 0:00:08]} O-O {[%emt 0:00:12]} 13. Ne2 {[%emt 0:02:18]} exd5 {[%emt 0:04:12]} 14. exd5 {[%emt 0:00:44]} Qe7 {[%emt 0:01:54]} 15. O-O {[%emt 0:00:57]} Rae8 {[%emt 0:00:06]} 16. Rae1 {[%emt 0:01:05]} Qc5+ {[%emt 0:00:40]} 17. Qd4 {[%emt 0:04:13]} Re4 {[%emt 0:02:32]} 18. Qxc5 {[%emt 0:02:34]} bxc5 {[%emt 0:00:07]} 19. Bxc7 {[%emt 0:01:57]} Rfe8 {[%emt 0:00:59]} 20. Rb1 {[%emt 0:03:31]} Bxd5 {[%emt 0:10:13]} 21. cxd5 {[%emt 0:01:00]} Rxe2 {[%emt 0:00:06]} 22. Rb5 {[%emt 0:02:18]} Nxd5 {[%emt 0:10:32]} 23. Rxc5 {[%emt 0:00:38]} Ne3 {[%emt 0:00:20]} 24. Ra1 {[%emt 0:05:40]} Rf8 {[%emt 0:11:32]} 25. Bg3 {[%emt 0:02:05]} Rxg2+ {[%emt 0:01:36]} 26. Kh1 {[%emt 0:00:06]} Rxa2 {[%emt 0:01:46]} 27. Rb1 {[%emt 0:01:38]} h6 {[%emt 0:01:13]} 28. Rc7 {[%emt 0:01:16]} Rf7 {[%emt 0:05:16]} 29. Re1 {[%emt 0:03:56]} a5 {[%emt 0:01:50]} 30. Rc8+ {[%emt 0:00:38]} Kh7 {[%emt 0:00:06]} 31. Re8 {[%emt 0:00:15]} Nf5 {[%emt 0:01:16]} 32. Bc7 {[%emt 0:03:58]} d6 {[%emt 0:00:57]} 33. Bb6 {[%emt 0:00:36]} a4 {[%emt 0:00:35]} 34. R8e2 {[%emt 0:01:18]} Rxe2 {[%emt 0:00:27]} 35. Rxe2 {[%emt 0:00:06]} Rb7 {[%emt 0:00:22]} 36. Ba5 {[%emt 0:01:16]} Rb1+ {[%emt 0:01:28]} 37. Kg2 {[%emt 0:00:12]} a3 {[%emt 0:00:16]} 0-1

[Event "16th Deltalift Open 2019"]
[Site "Halmstad"]
[Date "2019.06.01"]
[Round "7.18"]
[White "Nyander, Joakim"]
[Black "Silfverstroem, Niklas"]
[Result "1-0"]
[ECO "A15"]
[WhiteElo "2235"]
[BlackElo "2019"]
[Annotator "ChessBase"]
[PlyCount "93"]
[EventDate "2019.05.30"]
[EventType "swiss"]
[EventCountry "SWE"]
[SourceTitle "playchess.com"]
[Source "ChessBase"]
[SourceQuality "1"]
[TimeControl "40/5400+30:1800+30"]

1. c4 {[%emt 0:00:00]} Nf6 {[%emt 0:00:00]} 2. g3 {[%emt 0:00:03]} g6 {[%emt 0:00:00]} 3. Bg2 {[%emt 0:00:09]} Bg7 {[%emt 0:00:00]} 4. Nc3 {[%emt 0:00:25]} O-O {[%emt 0:00:00]} 5. e4 {[%emt 0:00:26]} d6 {[%emt 0:00:00]} 6. Nge2 {[%emt 0:00:34]} c5 {[%emt 0:02:11]} 7. O-O {[%emt 0:01:15]} Nc6 {[%emt 0:02:20]} 8. d3 {[%emt 0:00:49]} a6 {[%emt 0:03:13]} 9. h3 {[%emt 0:01:26]} Rb8 {[%emt 0:00:17]} 10. a4 {[%emt 0:00:42]} Qc7 {[%emt 0:21:09]} 11. Be3 {[%emt 0:01:03]} Nb4 {[%emt 0:01:18]} 12. d4 {[%emt 0:09:52]} cxd4 {[%emt 0:01:24]} 13. Nxd4 {[%emt 0:01:11]} e5 {[%emt 0:15:56]} 14. Nde2 {[%emt 0:09:09]} Be6 {[%emt 0:00:30]} 15. b3 {[%emt 0:04:41]} Nd7 {[%emt 0:01:28]} 16. Qd2 {[%emt 0:06:09]} Nc5 {[%emt 0:00:42]} 17. Rab1 {[%emt 0:01:38]} Qd7 {[%emt 0:08:55]} 18. Kh2 {[%emt 0:08:33]} Rbd8 {[%emt 0:03:51]} 19. Rfd1 {[%emt 0:08:57]} f5 {[%emt 0:01:22]} 20. f3 {[%emt 0:02:17]} Qf7 {[%emt 0:02:15]} 21. Nd5 {[%emt 0:08:01]} Nxd5 {[%emt 0:00:46]} 22. cxd5 {[%emt 0:00:29]} Bc8 {[%emt 0:05:16]} 23. a5 {[%emt 0:04:35]} f4 {[%emt 0:02:08]} 24. gxf4 {[%emt 0:02:38]} exf4 {[%emt 0:00:20]} 25. Bd4 {[%emt 0:03:40]} Nd7 {[%emt 0:02:05]} 26. Rdc1 {[%emt 0:03:22]} Bxd4 {[%emt 0:02:16]} 27. Nxd4 {[%emt 0:00:15]} Ne5 {[%emt 0:00:05]} 28. b4 {[%emt 0:00:40]} g5 {[%emt 0:00:53]} 29. Rc3 {[%emt 0:03:57]} Qh5 {[%emt 0:05:12]} 30. Qe2 {[%emt 0:10:01]} Rf6 {[%emt 0:04:53]} 31. Rh1 {[%emt 0:03:05]} g4 {[%emt 0:03:24]} 32. fxg4 {[%emt 0:01:59]} Bxg4 {[%emt 0:00:16]} 33. Qf2 {[%emt 0:02:24]} f3 {[%emt 0:00:43]} 34. Rg1 {[%emt 0:01:17]} Kh8 {[%emt 0:04:00]} 35. Bf1 {[%emt 0:00:25]} Bd7 {[%emt 0:01:18]} 36. Ne6 {[%emt 0:00:54]} Bxe6 {[%emt 0:00:43]} 37. dxe6 {[%emt 0:00:02]} Rxe6 {[%emt 0:01:00]} 38. Rc7 {[%emt 0:00:32]} Rg6 {[%emt 0:05:21]} 39. Rxg6 {[%emt 0:00:24]} Qxg6 {[%emt 0:00:17]} 40. Qg3 {[%emt 0:00:25]} Qf6 {[%emt 0:01:04]} 41. Rxb7 {[%emt 0:02:23]} Rg8 {[%emt 0:00:34]} 42. Qf2 {[%emt 0:00:10]} Qh6 {[%emt 0:00:21]} 43. Kh1 {[%emt 0:00:48]} Ng4 {[%emt 0:00:06]} 44. Qxf3 {[%emt 0:03:24]} Qh4 {[%emt 0:01:40]} 45. Rf7 {[%emt 0:02:39]} Qh6 {[%emt 0:03:17]} 46. Qf4 {[%emt 0:03:27]} Qh4 {[%emt 0:03:05]} 47. Rf8 {[%emt 0:01:34]} 1-0

[Event "16th Deltalift Open 2019"]
[Site "Halmstad"]
[Date "2019.06.01"]
[Round "7.19"]
[White "Sjoberg, Isak"]
[Black "Nilsson, Eskil"]
[Result "0-1"]
[ECO "B20"]
[WhiteElo "2208"]
[BlackElo "1991"]
[Annotator "ChessBase"]
[PlyCount "52"]
[EventDate "2019.05.30"]
[EventType "swiss"]
[EventCountry "SWE"]
[SourceTitle "playchess.com"]
[Source "ChessBase"]
[SourceQuality "1"]
[TimeControl "40/5400+30:1800+30"]

1. e4 {[%emt 0:01:46]} c5 {[%emt 0:00:00]} 2. b3 {[%emt 0:00:56]} e5 {[%emt 0:02:00]} 3. Bb2 {[%emt 0:00:07]} d6 {[%emt 0:01:00]} 4. Bc4 {[%emt 0:03:08]} Nf6 {[%emt 0:01:03]} 5. Nc3 {[%emt 0:00:20]} Nc6 {[%emt 0:01:03]} 6. d3 {[%emt 0:01:20]} a6 {[%emt 0:02:36]} 7. a4 {[%emt 0:00:04]} Be7 {[%emt 0:01:27]} 8. Nge2 {[%emt 0:00:27]} O-O {[%emt 0:01:12]} 9. O-O {[%emt 0:00:50]} Be6 {[%emt 0:12:25]} 10. Ng3 {[%emt 0:20:21]} Nd4 {[%emt 0:07:05]} 11. Nd5 {[%emt 0:15:33]} Nxd5 {[%emt 0:13:37]} 12. Bxd5 {[%emt 0:06:49]} Qd7 {[%emt 0:03:35]} 13. c3 {[%emt 0:03:25]} Nc6 {[%emt 0:00:51]} 14. f4 {[%emt 0:02:03]} exf4 {[%emt 0:02:11]} 15. Rxf4 {[%emt 0:01:37]} Bg5 {[%emt 0:03:16]} 16. Rf1 {[%emt 0:01:54]} Bg4 {[%emt 0:04:42]} 17. Qc2 {[%emt 0:03:02]} Ne7 {[%emt 0:01:38]} 18. Kh1 {[%emt 0:05:43]} Bh4 {[%emt 0:11:05]} 19. d4 {[%emt 0:07:48]} Nxd5 {[%emt 0:01:38]} 20. exd5 {[%emt 0:00:10]} cxd4 {[%emt 0:01:00]} 21. c4 {[%emt 0:00:21]} f5 {[%emt 0:04:55]} 22. Qd2 {[%emt 0:04:58]} Rae8 {[%emt 0:01:42]} 23. Qxd4 {[%emt 0:02:48]} Bf6 {[%emt 0:01:13]} 24. Qd2 {[%emt 0:04:45]} Bxb2 {[%emt 0:00:06]} 25. Qxb2 {[%emt 0:00:04]} f4 {[%emt 0:00:12]} 26. h3 {[%emt 0:00:23]} fxg3 {[%emt 0:02:05]} 0-1

[Event "16th Deltalift Open 2019"]
[Site "Halmstad"]
[Date "2019.06.01"]
[Round "7.20"]
[White "Cedervall, Magnus"]
[Black "Petersson, Baldur Teodor"]
[Result "0-1"]
[ECO "B21"]
[WhiteElo "2006"]
[BlackElo "2163"]
[Annotator "ChessBase"]
[PlyCount "60"]
[EventDate "2019.05.30"]
[EventType "swiss"]
[EventCountry "SWE"]
[SourceTitle "playchess.com"]
[Source "ChessBase"]
[SourceQuality "1"]
[TimeControl "40/5400+30:1800+30"]

1. e4 {[%emt 0:00:00]} c5 {[%emt 0:00:00]} 2. d4 {[%emt 0:00:00]} cxd4 {[%emt 0:00:00]} 3. c3 {[%emt 0:00:07]} dxc3 {[%emt 0:00:00]} 4. Nxc3 {[%emt 0:00:15]} e6 {[%emt 0:00:08]} 5. Nf3 {[%emt 0:00:15]} a6 {[%emt 0:00:15]} 6. Bc4 {[%emt 0:00:28]} Nc6 {[%emt 0:00:08]} 7. O-O {[%emt 0:00:44]} Nge7 {[%emt 0:00:36]} 8. Bg5 {[%emt 0:01:45]} h6 {[%emt 0:00:17]} 9. Be3 {[%emt 0:02:42]} Ng6 {[%emt 0:01:13]} 10. Bb3 {[%emt 0:00:48]} b5 {[%emt 0:03:59]} 11. Qe2 {[%emt 0:02:54]} Be7 {[%emt 0:01:07]} 12. Rfd1 {[%emt 0:02:15]} O-O {[%emt 0:00:39]} 13. Nd4 {[%emt 0:07:37]} Bb7 {[%emt 0:05:51]} 14. a3 {[%emt 0:30:40]} Bg5 {[%emt 0:12:35]} 15. Rd2 {[%emt 0:06:06]} Nxd4 {[%emt 0:08:34]} 16. Rxd4 {[%emt 0:01:40]} Bf6 {[%emt 0:00:13]} 17. Rd6 {[%emt 0:04:13]} Be5 {[%emt 0:02:43]} 18. Rd2 {[%emt 0:05:23]} Qc7 {[%emt 0:07:21]} 19. Rc2 {[%emt 0:05:57]} Bxh2+ {[%emt 0:02:36]} 20. Kh1 {[%emt 0:01:54]} Be5 {[%emt 0:00:33]} 21. Qg4 {[%emt 0:07:27]} Bc6 {[%emt 0:04:37]} 22. g3 {[%emt 0:03:26]} Qb7 {[%emt 0:04:02]} 23. f3 {[%emt 0:03:33]} Bxc3 {[%emt 0:00:52]} 24. bxc3 {[%emt 0:00:17]} Ne5 {[%emt 0:01:46]} 25. Qh5 {[%emt 0:03:46]} Nxf3 {[%emt 0:00:13]} 26. Bxh6 {[%emt 0:03:44]} gxh6 {[%emt 0:00:21]} 27. Qxh6 {[%emt 0:01:24]} Bxe4 {[%emt 0:00:11]} 28. Rh2 {[%emt 0:01:25]} Nxh2+ {[%emt 0:01:36]} 29. Kxh2 {[%emt 0:00:08]} f6 {[%emt 0:01:57]} 30. Rh1 {[%emt 0:03:25]} Rf7 {[%emt 0:00:40]} 0-1

[Event "16th Deltalift Open 2019"]
[Site "Halmstad"]
[Date "2019.06.01"]
[Round "7.21"]
[White "Ask, Josef"]
[Black "Wernberg, Hugo"]
[Result "1-0"]
[ECO "B50"]
[WhiteElo "2149"]
[BlackElo "2017"]
[Annotator "ChessBase"]
[PlyCount "127"]
[EventDate "2019.05.30"]
[EventType "swiss"]
[EventCountry "SWE"]
[SourceTitle "playchess.com"]
[Source "ChessBase"]
[SourceQuality "1"]
[TimeControl "40/5400+30:1800+30"]

1. e4 {[%emt 0:07:01]} c5 {[%emt 0:00:00]} 2. Nf3 {[%emt 0:00:34]} d6 {[%emt 0:00:00]} 3. c3 {[%emt 0:00:47]} Nf6 {[%emt 0:01:41]} 4. Be2 {[%emt 0:00:32]} g6 {[%emt 0:02:31]} 5. O-O {[%emt 0:03:01]} Bg7 {[%emt 0:01:23]} 6. Na3 {[%emt 0:02:17]} O-O {[%emt 0:02:49]} 7. d3 {[%emt 0:00:46]} Nc6 {[%emt 0:02:37]} 8. h3 {[%emt 0:01:47]} b6 {[%emt 0:06:23]} 9. Bg5 {[%emt 0:01:42]} Bb7 {[%emt 0:08:02]} 10. Qd2 {[%emt 0:02:27]} Ne8 {[%emt 0:13:10]} 11. Nh2 {[%emt 0:07:34]} Nc7 {[%emt 0:09:52]} 12. Bh6 {[%emt 0:02:07]} Qe8 {[%emt 0:11:00]} 13. Bd1 {[%emt 0:06:35]} f5 {[%emt 0:04:43]} 14. Bb3+ {[%emt 0:02:11]} Kh8 {[%emt 0:00:30]} 15. Rae1 {[%emt 0:01:06]} Bxh6 {[%emt 0:07:07]} 16. Qxh6 {[%emt 0:00:04]} Ne5 {[%emt 0:01:06]} 17. Bc2 {[%emt 0:02:54]} fxe4 {[%emt 0:01:01]} 18. dxe4 {[%emt 0:00:22]} Ba6 {[%emt 0:00:46]} 19. f4 {[%emt 0:02:03]} Bxf1 {[%emt 0:06:56]} 20. Rxf1 {[%emt 0:00:22]} Nd7 {[%emt 0:02:14]} 21. Nf3 {[%emt 0:02:50]} Qf7 {[%emt 0:04:00]} 22. Ng5 {[%emt 0:00:25]} Qg7 {[%emt 0:00:18]} 23. Qh4 {[%emt 0:00:34]} Rf6 {[%emt 0:01:32]} 24. Bb3 {[%emt 0:01:59]} Raf8 {[%emt 0:01:31]} 25. Nc2 {[%emt 0:03:00]} e5 {[%emt 0:01:53]} 26. g3 {[%emt 0:00:33]} b5 {[%emt 0:02:02]} 27. Ne3 {[%emt 0:00:15]} c4 {[%emt 0:00:15]} 28. Bc2 {[%emt 0:00:22]} Ne6 {[%emt 0:02:52]} 29. Nxe6 {[%emt 0:04:13]} Rxe6 {[%emt 0:00:08]} 30. f5 {[%emt 0:00:36]} g5 {[%emt 0:02:10]} 31. Qg4 {[%emt 0:00:35]} Nf6 {[%emt 0:00:21]} 32. Qd1 {[%emt 0:00:20]} Re7 {[%emt 0:01:16]} 33. Qxd6 {[%emt 0:00:13]} Rfe8 {[%emt 0:01:16]} 34. Rf2 {[%emt 0:00:54]} Rb7 {[%emt 0:01:06]} 35. a4 {[%emt 0:01:35]} Qe7 {[%emt 0:01:04]} 36. Qxe7 {[%emt 0:00:52]} Rexe7 {[%emt 0:00:09]} 37. axb5 {[%emt 0:00:20]} Rec7 {[%emt 0:00:41]} 38. Rd2 {[%emt 0:04:22]} Rxb5 {[%emt 0:00:35]} 39. Bb1 {[%emt 0:00:23]} Kg7 {[%emt 0:00:35]} 40. Kg2 {[%emt 0:00:20]} h6 {[%emt 0:00:45]} 41. Kf3 {[%emt 0:30:28]} Ra5 {[%emt 0:03:56]} 42. Rd6 {[%emt 0:00:00]} Ra1 {[%emt 0:01:08]} 43. Bc2 {[%emt 0:00:00]} Ra2 {[%emt 0:02:32]} 44. Rxf6 {[%emt 0:00:00]} Kxf6 {[%emt 0:00:46]} 45. Nd5+ {[%emt 0:00:00]} Kf7 {[%emt 0:03:01]} 46. Nxc7 {[%emt 0:00:00]} Rxb2 {[%emt 0:00:29]} 47. Ba4 {[%emt 0:00:00]} Rh2 {[%emt 0:01:14]} 48. Bb5 {[%emt 0:00:00]} Rxh3 {[%emt 0:01:04]} 49. Bxc4+ {[%emt 0:00:00]} Kg7 {[%emt 0:00:13]} 50. Nd5 {[%emt 0:00:00]} h5 {[%emt 0:01:53]} 51. Kg2 {[%emt 0:00:00]} g4 {[%emt 0:00:13]} 52. Ba6 {[%emt 0:00:00]} Kh6 {[%emt 0:01:27]} 53. c4 {[%emt 0:00:00]} h4 {[%emt 0:01:37]} 54. gxh4 {[%emt 0:00:00]} Ra3 {[%emt 0:00:46]} 55. Bb5 {[%emt 0:00:00]} Kh5 {[%emt 0:01:18]} 56. f6 {[%emt 0:00:00]} Kxh4 {[%emt 0:00:19]} 57. c5 {[%emt 0:00:00]} Ra2+ {[%emt 0:00:33]} 58. Kg1 {[%emt 0:00:00]} Kg3 {[%emt 0:03:27]} 59. Bf1 {[%emt 0:00:00]} Rc2 {[%emt 0:00:59]} 60. Ne7 {[%emt 0:00:00]} Rf2 {[%emt 0:00:57]} 61. Nf5+ {[%emt 0:00:00]} Kf3 {[%emt 0:00:15]} 62. f7 {[%emt 0:00:00]} g3 {[%emt 0:00:13]} 63. f8=Q {[%emt 0:00:00]} g2 {[%emt 0:00:16]} 64. Nh4+ {[%emt 0:00:00]} 1-0

[Event "16th Deltalift Open 2019"]
[Site "Halmstad"]
[Date "2019.06.01"]
[Round "7.22"]
[White "Harren, Mats"]
[Black "Andersson, Lars"]
[Result "1-0"]
[ECO "B12"]
[WhiteElo "2139"]
[BlackElo "1997"]
[Annotator "ChessBase"]
[PlyCount "69"]
[EventDate "2019.05.30"]
[EventType "swiss"]
[EventCountry "SWE"]
[SourceTitle "playchess.com"]
[Source "ChessBase"]
[SourceQuality "1"]
[TimeControl "40/5400+30:1800+30"]

1. e4 {[%emt 0:00:00]} c6 {[%emt 0:00:00]} 2. d4 {[%emt 0:00:00]} d5 {[%emt 0:00:00]} 3. e5 {[%emt 0:00:00]} c5 {[%emt 0:00:00]} 4. dxc5 {[%emt 0:00:00]} e6 {[%emt 0:00:00]} 5. a3 {[%emt 0:00:51]} Nc6 {[%emt 0:01:19]} 6. Nf3 {[%emt 0:08:43]} Bxc5 {[%emt 0:00:24]} 7. Bd3 {[%emt 0:01:00]} Nge7 {[%emt 0:01:50]} 8. b4 {[%emt 0:04:38]} Bb6 {[%emt 0:00:11]} 9. O-O {[%emt 0:02:09]} Ng6 {[%emt 0:01:00]} 10. Bb2 {[%emt 0:00:28]} Bc7 {[%emt 0:09:15]} 11. Re1 {[%emt 0:02:27]} O-O {[%emt 0:00:29]} 12. Nbd2 {[%emt 0:02:48]} f6 {[%emt 0:02:25]} 13. Bxg6 {[%emt 0:07:57]} hxg6 {[%emt 0:00:10]} 14. b5 {[%emt 0:00:15]} Ne7 {[%emt 0:19:40]} 15. c4 {[%emt 0:06:33]} b6 {[%emt 0:07:26]} 16. cxd5 {[%emt 0:19:19]} exd5 {[%emt 0:01:34]} 17. Rc1 {[%emt 0:02:42]} Bg4 {[%emt 0:03:39]} 18. Qa4 {[%emt 0:03:04]} Bxf3 {[%emt 0:11:00]} 19. Nxf3 {[%emt 0:00:51]} Qd7 {[%emt 0:01:14]} 20. exf6 {[%emt 0:05:50]} gxf6 {[%emt 0:00:10]} 21. Qc2 {[%emt 0:06:17]} Rac8 {[%emt 0:02:26]} 22. Qd3 {[%emt 0:00:54]} Rf7 {[%emt 0:22:53]} 23. Kf1 {[%emt 0:06:34]} Rcf8 {[%emt 0:01:59]} 24. Rc2 {[%emt 0:02:12]} Qd6 {[%emt 0:01:39]} 25. h3 {[%emt 0:01:33]} Bb8 {[%emt 0:01:26]} 26. Rce2 {[%emt 0:03:54]} Nf5 27. Re6 {[%emt 0:02:04]} Qd7 {[%emt 0:07:40]} 28. a4 Kh7 {[%emt 0:02:42]} 29. Ba3 {[%emt 0:04:54]} Rc8 {[%emt 0:00:27]} 30. g4 {[%emt 0:00:58]} Ng7 31. Re7 {[%emt 0:01:28]} Rxe7 {[%emt 0:01:22]} 32. Rxe7 {[%emt 0:00:01]} Qd8 {[%emt 0:00:41]} 33. Qd4 {[%emt 0:01:02]} Bd6 {[%emt 0:00:45]} 34. Ng5+ {[%emt 0:00:23]} Kg8 {[%emt 0:00:39]} 35. Rxg7+ 1-0